fUST/lending_fUST_20250626
["ID","MTS","AMOUNT","RATE_DAILY","PERIOD"]
[367772353,1750925447621,-460.0,0.00018164,2]
[367772355,1750925447631,-460.0,0.00018164,2]
[367772357,1750925447640,-460.0,0.00018164,2]
[367772359,1750925447650,-460.0,0.00018164,2]
[367772361,1750925447661,-460.0,0.00018164,2]
[367772363,1750925447671,-460.0,0.00018164,2]
[367772365,1750925447680,-460.0,0.00018164,2]
[367772367,1750925447690,-535.75,0.00018164,2]
[367772369,1750925447700,-460.0,0.00018164,2]
[367772371,1750925447710,-460.0,0.00018164,2]
[367772373,1750925447719,-460.0,0.00018164,2]
[367772375,1750925447729,-507.91,0.00018164,2]
[367772377,1750925447739,-659.25,0.00018164,2]
[367772379,1750925447748,-2281.82,0.00018164,2]
[367772381,1750925447758,-460.0,0.00018164,2]
[367772383,1750925447767,-587.57057997,0.00018164,2]
[367772385,1750925447777,-217.033012,0.00018164,2]
[367772386,1750925447786,-460.0,0.00018164,2]
[367772388,1750925447796,-217.033012,0.00018164,2]
[367772390,1750925447806,-2424.32,0.00018164,2]
[367772391,1750925447816,-460.0,0.00018164,2]
[367772392,1750925447923,-460.0,0.00018164,2]
[367772393,1750925447947,-960.97,0.00018164,2]
[367772394,1750925447957,-460.0,0.00018164,2]
[367772395,1750925447966,-2935.28,0.00018164,2]
[367772396,1750925447976,-460.0,0.00018164,2]
[367772397,1750925447986,-460.0,0.00018164,2]
[367772398,1750925447995,-460.0,0.00018164,2]
[367772399,1750925448005,-460.0,0.00018164,2]
[367772400,1750925448015,-151.0,0.00018164,2]
[367772401,1750925448024,-460.0,0.00018164,2]
[367772402,1750925448033,-460.0,0.00018164,2]
[367772403,1750925448043,-1502.2,0.00018164,2]
[367772405,1750925448052,-151.0,0.00018164,2]
[367772407,1750925448062,-460.0,0.00018164,2]
[367772408,1750925448071,-460.0,0.00018164,2]
[367772410,1750925448080,-460.0,0.00018164,2]
[367772412,1750925448089,-460.0,0.00018164,2]
[367772414,1750925448098,-460.0,0.00018164,2]
[367772416,1750925448108,-460.0,0.00018164,2]
[367772418,1750925448117,-460.0,0.00018164,2]
[367772420,1750925448127,-953.08,0.00018164,2]
[367772422,1750925448136,-460.0,0.00018164,2]
[367772424,1750925448145,-460.0,0.00018164,2]
[367772426,1750925448154,-460.0,0.00018164,2]
[367772428,1750925448163,-478.43,0.00018164,2]
[367772430,1750925448173,-460.0,0.00018164,2]
[367772432,1750925448182,-151.0,0.00018164,2]
[367772434,1750925448191,-151.0,0.00018164,2]
[367772436,1750925448201,-460.0,0.00018164,2]
[367772438,1750925448210,-2507.37,0.00018164,2]
[367772440,1750925448219,-460.0,0.00018164,2]
[367772442,1750925448228,-827.13,0.00018164,2]
[367772444,1750925448238,-740.56,0.00018164,2]
[367772446,1750925448247,-460.0,0.00018164,2]
[367772448,1750925448255,-460.0,0.00018164,2]
[367772450,1750925448264,-460.0,0.00018164,2]
[367772452,1750925448274,-1311.52,0.00018164,2]
[367772454,1750925448283,-151.0,0.00018164,2]
[367772456,1750925448292,-460.0,0.00018164,2]
[367772458,1750925448301,-460.0,0.00018164,2]
[367772460,1750925448310,-195.79417,0.00018164,2]
[367772462,1750925448320,-484.03,0.00018164,2]
[367772464,1750925448329,-195.79417,0.00018164,2]
[367772466,1750925448339,-781.34,0.00018164,2]
[367772468,1750925448349,-160.00728996,0.00018179,2]
[367772469,1750925448358,-151.0,0.00018185,2]
[367772471,1750925448368,-151.0,0.00018185,2]
[367772473,1750925448378,-151.0,0.00018185,2]
[367772475,1750925448387,-151.0,0.00018185,2]
[367772477,1750925448398,-195.79417,0.00018185,2]
[367772479,1750925448409,-195.79417,0.00018185,2]
[367772481,1750925448418,-151.0,0.00018212,2]
[367772483,1750925448427,-321.409189,0.00018212,2]
[367772485,1750925448437,-321.409189,0.00018212,2]
[367772487,1750925448447,-368.344031,0.00018213,2]
[367772489,1750925448457,-460.0,0.00018213,2]
[367772491,1750925448466,-460.0,0.00018213,2]
[367772493,1750925448476,-349.89938791,0.00018213,2]
[367772495,1750925448485,-460.0,0.00018213,2]
[367772497,1750925448495,-460.0,0.00018213,2]
[367772499,1750925448505,-460.0,0.00018213,2]
[367772501,1750925448516,-460.0,0.00018213,2]
[367772503,1750925448525,-460.0,0.00018213,2]
[367772505,1750925448535,-460.0,0.00018213,2]
[367772507,1750925448544,-460.0,0.00018213,2]
[367772509,1750925448553,-460.0,0.00018213,2]
[367772511,1750925448563,-460.0,0.00018213,2]
[367772513,1750925448573,-460.0,0.00018213,2]
[367772515,1750925448583,-460.0,0.00018213,2]
[367772517,1750925448592,-596.91667619,0.00018213,2]
[367772519,1750925448603,-460.0,0.00018213,2]
[367772521,1750925448613,-460.0,0.00018213,2]
[367772523,1750925448623,-233.259426,0.00018213,2]
[367772525,1750925448632,-468.22,0.00018213,2]
[367772527,1750925448641,-151.0,0.00018213,2]
[367772529,1750925448651,-542.92,0.00018213,2]
[367772531,1750925448660,-579.195798,0.00018213,2]
[367772533,1750925448669,-460.0,0.00018213,2]
[367772535,1750925448679,-579.195798,0.00018213,2]
[367772537,1750925448689,-460.0,0.00018213,2]
[367772539,1750925448698,-778.13,0.00018213,2]
[367772541,1750925448707,-460.0,0.00018213,2]
[367772543,1750925448718,-460.0,0.00018213,2]
[367772545,1750925448728,-151.0,0.00018213,2]
[367772547,1750925448738,-153.271624,0.00018213,2]
[367772549,1750925448747,-460.0,0.00018213,2]
[367772550,1750925448757,-153.271624,0.00018213,2]
[367772552,1750925448767,-151.0,0.00018213,2]
[367772555,1750925448777,-173.498796,0.00018213,2]
[367772557,1750925448787,-581.91442889,0.00018213,2]
[367772558,1750925448796,-151.0,0.00018213,2]
[367772561,1750925448807,-151.0,0.00018213,2]
[367772562,1750925448816,-151.0,0.00018213,2]
[367772565,1750925448825,-151.0,0.00018213,2]
[367772567,1750925448835,-151.0,0.00018213,2]
[367772568,1750925448844,-460.0,0.00018213,2]
[367772570,1750925448855,-460.0,0.00018213,2]
[367772572,1750925448864,-600.746683,0.00018213,2]
[367772574,1750925448874,-151.0,0.00018213,2]
[367772576,1750925448883,-460.0,0.00018213,2]
[367772578,1750925448892,-600.746683,0.00018213,2]
[367772580,1750925448902,-460.0,0.00018213,2]
[367772582,1750925448911,-151.0,0.00018213,2]
[367772585,1750925448921,-460.0,0.00018213,2]
[367772586,1750925448931,-152.059841,0.00018213,2]
[367772588,1750925448940,-460.0,0.00018213,2]
[367772590,1750925448949,-508.79,0.00018213,2]
[367772593,1750925448959,-3255.73,0.00018213,2]
[367772594,1750925448968,-794.47,0.00018213,2]
[367772596,1750925448977,-151.0,0.00018213,2]
[367772598,1750925448987,-460.0,0.00018213,2]
[367772600,1750925448998,-460.0,0.00018213,2]
[367772602,1750925449007,-460.0,0.00018213,2]
[367772604,1750925449016,-699.41,0.00018213,2]
[367772606,1750925449025,-217.033012,0.00018213,2]
[367772608,1750925449038,-217.033012,0.00018213,2]
[367772610,1750925449048,-320.348799,0.00018213,2]
[367772612,1750925449057,-320.348799,0.00018213,2]
[367772614,1750925449066,-460.0,0.00018213,2]
[367772616,1750925449075,-609.13,0.00018213,2]
[367772618,1750925449084,-572.31,0.00018213,2]
[367772620,1750925449093,-460.0,0.00018213,2]
[367772622,1750925449103,-151.0,0.00018213,2]
[367772624,1750925449112,-321.409189,0.00018213,2]
[367772626,1750925449121,-156.716405,0.00018213,2]
[367772627,1750925449131,-321.409189,0.00018213,2]
[367772630,1750925449140,-1302.92,0.00018213,2]
[367772632,1750925449150,-195.79417,0.00018213,2]
[367772633,1750925449159,-195.79417,0.00018213,2]
[367772636,1750925449168,-151.0,0.00018378,2]
[367772638,1750925449178,-284.00379,0.00018382,2]
[367772640,1750925449187,-151.0,0.00018382,2]
[367772641,1750925449196,-320.348799,0.00018382,2]
[367772643,1750925449206,-320.348799,0.00018382,2]
[367772645,1750925449215,-2973.23415428,0.00018383,2]
[367772647,1750925449225,-460.0,0.00018437,2]
[367772649,1750925449234,-460.0,0.00018437,2]
[367772651,1750925449243,-460.0,0.00018437,2]
[367772653,1750925449252,-460.0,0.00018438,2]
[367772655,1750925449262,-460.0,0.00018438,2]
[367772657,1750925449271,-151.0,0.00018438,2]
[367772659,1750925449280,-151.0,0.00018438,2]
[367772661,1750925449289,-460.0,0.00018438,2]
[367772663,1750925449298,-298.30678478,0.00018438,2]
[367772665,1750925449308,-460.0,0.00018438,2]
[367772667,1750925449317,-460.0,0.00018438,2]
[367772669,1750925449327,-460.0,0.00018438,2]
[367772671,1750925449336,-460.0,0.00018438,2]
[367772673,1750925449346,-460.0,0.00018438,2]
[367772675,1750925449355,-460.0,0.00018438,2]
[367772677,1750925449364,-460.0,0.00018438,2]
[367772679,1750925449373,-460.0,0.00018438,2]
[367772681,1750925449383,-460.0,0.00018438,2]
[367772683,1750925449392,-460.0,0.00018438,2]
[367772685,1750925449405,-460.0,0.00018438,2]
[367772687,1750925449414,-151.0,0.00018438,2]
[367772689,1750925449423,-151.0,0.00018438,2]
[367772691,1750925449433,-151.0,0.00018438,2]
[367772693,1750925449443,-460.0,0.00018438,2]
[367772694,1750925449452,-460.0,0.00018438,2]
[367772696,1750925449462,-460.0,0.00018438,2]
[367772698,1750925449471,-460.0,0.00018438,2]
[367772699,1750925449481,-460.0,0.00018438,2]
[367772700,1750925449490,-460.0,0.00018438,2]
[367772701,1750925449499,-460.0,0.00018438,2]
[367772703,1750925449509,-460.0,0.00018438,2]
[367772705,1750925449518,-460.0,0.00018438,2]
[367772707,1750925449528,-151.0,0.00018438,2]
[367772709,1750925449537,-460.0,0.00018438,2]
[367772711,1750925449547,-1567.18,0.00018438,2]
[367772712,1750925449556,-460.0,0.00018438,2]
[367772714,1750925449565,-460.0,0.00018438,2]
[367772716,1750925449576,-161.55112717,0.00018438,2]
[367772718,1750925449586,-460.0,0.00018438,2]
[367772720,1750925449596,-460.0,0.00018438,2]
[367772722,1750925449606,-1663.9,0.00018438,2]
[367772724,1750925449616,-313.62272974,0.00018438,2]
[367772726,1750925449625,-497.59,0.00018438,2]
[367772728,1750925449635,-460.0,0.00018438,2]
[367772730,1750925449644,-460.0,0.00018438,2]
[367772732,1750925449653,-460.0,0.00018438,2]
[367772734,1750925449662,-460.0,0.00018438,2]
[367772736,1750925449672,-460.0,0.00018438,2]
[367772738,1750925449681,-460.0,0.00018438,2]
[367772740,1750925449691,-460.0,0.00018438,2]
[367772742,1750925449700,-535.75,0.00018438,2]
[367772744,1750925449709,-460.0,0.00018438,2]
[367772746,1750925449718,-460.0,0.00018438,2]
[367772748,1750925449728,-460.0,0.00018438,2]
[367772750,1750925449737,-507.91,0.00018438,2]
[367772752,1750925449746,-659.25,0.00018438,2]
[367772754,1750925449756,-2281.82,0.00018438,2]
[367772756,1750925449765,-460.0,0.00018438,2]
[367772758,1750925449774,-460.0,0.00018438,2]
[367772760,1750925449784,-2424.32,0.00018438,2]
[367772762,1750925449793,-460.0,0.00018438,2]
[367772764,1750925449802,-460.0,0.00018438,2]
[367772765,1750925449811,-960.97,0.00018438,2]
[367772768,1750925449821,-460.0,0.00018438,2]
[367772769,1750925449831,-2935.28,0.00018438,2]
[367772771,1750925449840,-460.0,0.00018438,2]
[367772773,1750925449850,-460.0,0.00018438,2]
[367772775,1750925449859,-460.0,0.00018438,2]
[367772777,1750925449868,-460.0,0.00018438,2]
[367772779,1750925449878,-460.0,0.00018438,2]
[367772781,1750925449887,-460.0,0.00018438,2]
[367772782,1750925449897,-1502.2,0.00018438,2]
[367772783,1750925449906,-460.0,0.00018438,2]
[367772784,1750925449915,-460.0,0.00018438,2]
[367772785,1750925449924,-460.0,0.00018438,2]
[367772786,1750925449934,-375.4396776,0.00018438,2]
[367772787,1750925449943,-460.0,0.00018438,2]
[367772788,1750925449952,-460.0,0.00018438,2]
[367772789,1750925449961,-460.0,0.00018438,2]
[367772790,1750925449971,-953.08,0.00018438,2]
[367772791,1750925449981,-460.0,0.00018438,2]
[367772792,1750925449990,-460.0,0.00018438,2]
[367772793,1750925450000,-460.0,0.00018438,2]
[367772794,1750925450009,-478.43,0.00018438,2]
[367772795,1750925450021,-460.0,0.00018438,2]
[367772796,1750925450030,-151.0,0.00018438,2]
[367772798,1750925450039,-321.409189,0.00018438,2]
[367772800,1750925450049,-460.0,0.00018438,2]
[367772802,1750925450059,-321.409189,0.00018438,2]
[367772804,1750925450068,-2507.37,0.00018438,2]
[367772806,1750925450077,-460.0,0.00018438,2]
[367772808,1750925450086,-827.13,0.00018438,2]
[367772810,1750925450096,-740.56,0.00018438,2]
[367772812,1750925450106,-460.0,0.00018438,2]
[367772813,1750925450115,-460.0,0.00018438,2]
[367772814,1750925450123,-460.0,0.00018438,2]
[367772815,1750925450132,-1311.52,0.00018438,2]
[367772816,1750925450142,-460.0,0.00018438,2]
[367772817,1750925450151,-460.0,0.00018438,2]
[367772818,1750925450160,-195.79417,0.00018438,2]
[367772819,1750925450170,-484.03,0.00018438,2]
[367772820,1750925450179,-195.79417,0.00018438,2]
[367772821,1750925450188,-781.34,0.00018438,2]
[367772822,1750925450198,-500.0,0.0001846,2]
[367772823,1750925450207,-500.0,0.0001846,2]
[367772824,1750925450216,-500.79448408,0.0001846,2]
[367772825,1750925450225,-500.79180102,0.0001846,2]
[367772826,1750925450234,-500.0,0.0001846,2]
[367772827,1750925450244,-580.8694489,0.0001846,2]
[367772828,1750925450253,-500.0,0.0001846,2]
[367772829,1750925450262,-500.0,0.0001846,2]
[367772830,1750925450271,-500.0,0.0001846,2]
[367772831,1750925450280,-151.0,0.00018461,2]
[367772832,1750925450289,-558.08462948,0.00018475,2]
[367772833,1750925450298,-283.148176,0.00018486,2]
[367772834,1750925450307,-153.271624,0.00018486,2]
[367772835,1750925450316,-153.271624,0.00018486,2]
[367772836,1750925450325,-151.0,0.00018486,2]
[367772837,1750925450334,-151.0,0.00018486,2]
[367772838,1750925450344,-151.0,0.00018486,2]
[367772839,1750925450355,-281.580233,0.00018486,2]
[367772840,1750925450364,-151.0,0.00018486,2]
[367772841,1750925450373,-600.746683,0.00018486,2]
[367772842,1750925450383,-600.746683,0.00018486,2]
[367772843,1750925450392,-217.033012,0.00018486,2]
[367772844,1750925450403,-217.033012,0.00018486,2]
[367772845,1750925450413,-460.0,0.00018487,2]
[367772846,1750925450422,-460.0,0.00018487,2]
[367772847,1750925450431,-460.0,0.00018487,2]
[367772848,1750925450441,-460.0,0.00018487,2]
[367772849,1750925450450,-460.0,0.00018487,2]
[367772850,1750925450564,-208.54323682,0.00018487,2]
[367772851,1750925450574,-460.0,0.00018487,2]
[367772852,1750925450584,-460.0,0.00018487,2]
[367772853,1750925450594,-460.0,0.00018487,2]
[367772854,1750925450605,-151.307504,0.00018487,2]
[367772855,1750925450615,-460.0,0.00018487,2]
[367772856,1750925450624,-151.0,0.00018487,2]
[367772857,1750925450633,-163.201056,0.00018487,2]
[367772858,1750925450643,-163.201056,0.00018487,2]
[367772859,1750925450652,-460.0,0.00018487,2]
[367772860,1750925450662,-460.0,0.00018487,2]
[367772861,1750925450671,-151.0,0.00018487,2]
[367772862,1750925450681,-151.0,0.00018487,2]
[367772863,1750925450690,-151.0,0.00018487,2]
[367772864,1750925450699,-460.0,0.00018487,2]
[367772865,1750925450709,-460.0,0.00018487,2]
[367772866,1750925450718,-460.0,0.00018487,2]
[367772867,1750925450728,-468.22,0.00018487,2]
[367772868,1750925450738,-151.0,0.00018487,2]
[367772869,1750925450747,-160.864826,0.00018487,2]
[367772870,1750925450757,-160.864826,0.00018487,2]
[367772871,1750925450767,-542.92,0.00018487,2]
[367772872,1750925450776,-579.195798,0.00018487,2]
[367772873,1750925450786,-460.0,0.00018487,2]
[367772874,1750925450796,-460.0,0.00018487,2]
[367772875,1750925450806,-579.195798,0.00018487,2]
[367772876,1750925450815,-778.13,0.00018487,2]
[367772877,1750925450825,-460.0,0.00018487,2]
[367772878,1750925450834,-460.0,0.00018487,2]
[367772879,1750925450844,-153.271624,0.00018487,2]
[367772880,1750925450855,-153.271624,0.00018487,2]
[367772881,1750925450864,-151.0,0.00018487,2]
[367772882,1750925450874,-151.0,0.00018487,2]
[367772883,1750925450883,-460.0,0.00018487,2]
[367772884,1750925450892,-603.13,0.00018487,2]
[367772885,1750925450902,-600.746683,0.00018487,2]
[367772886,1750925450911,-498.45,0.00018487,2]
[367772887,1750925450920,-600.746683,0.00018487,2]
[367772888,1750925450930,-460.0,0.00018487,2]
[367772889,1750925450939,-460.0,0.00018487,2]
[367772890,1750925450948,-151.0,0.00018487,2]
[367772891,1750925450957,-460.0,0.00018487,2]
[367772892,1750925450967,-508.79,0.00018487,2]
[367772893,1750925450977,-3255.73,0.00018487,2]
[367772894,1750925450986,-794.47,0.00018487,2]
[367772895,1750925450996,-460.0,0.00018487,2]
[367772896,1750925451006,-460.0,0.00018487,2]
[367772897,1750925451016,-699.41,0.00018487,2]
[367772898,1750925451025,-217.033012,0.00018487,2]
[367772899,1750925451035,-217.033012,0.00018487,2]
[367772900,1750925451045,-320.348799,0.00018487,2]
[367772901,1750925451055,-320.348799,0.00018487,2]
[367772902,1750925451064,-460.0,0.00018487,2]
[367772904,1750925451073,-151.0,0.00018487,2]
[367772906,1750925451083,-609.13,0.00018487,2]
[367772908,1750925451092,-572.31,0.00018487,2]
[367772910,1750925451101,-460.0,0.00018487,2]
[367772912,1750925451111,-321.409189,0.00018487,2]
[367772914,1750925451120,-321.409189,0.00018487,2]
[367772916,1750925451130,-1302.92,0.00018487,2]
[367772918,1750925451139,-500.0,0.00018502,2]
[367772919,1750925451149,-151.0,0.00018515,2]
[367772921,1750925451158,-579.195798,0.00018515,2]
[367772924,1750925451167,-579.195798,0.00018515,2]
[367772926,1750925451176,-583.91756294,0.00018553,2]
[367772927,1750925451186,-500.0,0.00018553,2]
[367772929,1750925451195,-500.0,0.00018553,2]
[367772931,1750925451204,-506.60638078,0.00018553,2]
[367772933,1750925451213,-500.0,0.00018553,2]
[367772935,1750925451222,-500.8879173,0.00018553,2]
[367772937,1750925451233,-610.27674679,0.00018553,2]
[367772939,1750925451243,-500.0,0.00018553,2]
[367772941,1750925451252,-500.0,0.00018553,2]
[367772943,1750925451261,-500.3681152,0.00018553,2]
[367772944,1750925451271,-501.00939685,0.00018553,2]
[367772945,1750925451280,-151.0,0.00018581,2]
[367772947,1750925451289,-183.436065,0.00018581,2]
[367772949,1750925451298,-501.01948852,0.00018582,2]
[367772951,1750925451308,-500.0,0.00018582,2]
[367772953,1750925451318,-500.0,0.00018582,2]
[367772955,1750925451327,-500.0,0.00018582,2]
[367772957,1750925451336,-500.0,0.00018591,2]
[367772959,1750925451345,-500.0,0.00018591,2]
[367772961,1750925451354,-517.77986984,0.00018591,2]
[367772963,1750925451363,-500.5167576,0.00018591,2]
[367772965,1750925451372,-500.0,0.00018591,2]
[367772967,1750925451382,-500.0,0.00018591,2]
[367772969,1750925451391,-151.0,0.00018591,2]
[367772971,1750925451400,-195.79417,0.00018591,2]
[367772973,1750925451412,-195.79417,0.00018591,2]
[367772975,1750925451421,-2973.23415428,0.00018624,2]
[367772977,1750925451430,-420.0,0.0001864,2]
[367772979,1750925451439,-516.6,0.00018703,3]
[367772981,1750925451449,-500.0,0.00018711,2]
[367772983,1750925451458,-285.645974,0.00018711,2]
[367772985,1750925451468,-460.0,0.00018711,2]
[367772987,1750925451477,-460.0,0.00018711,2]
[367772990,1750925451487,-460.0,0.00018711,2]
[367772992,1750925451496,-460.0,0.00018712,2]
[367772993,1750925451506,-180.44949262,0.00018712,2]
[367772996,1750925451515,-460.0,0.00018712,2]
[367772997,1750925451525,-460.0,0.00018712,2]
[367772999,1750925451534,-460.0,0.00018712,2]
[367773002,1750925451543,-590.91809254,0.00018712,2]
[367773004,1750925451552,-460.0,0.00018712,2]
[367773005,1750925451561,-460.0,0.00018712,2]
[367773008,1750925451571,-460.0,0.00018712,2]
[367773010,1750925451581,-460.0,0.00018712,2]
[367773012,1750925451591,-153.271624,0.00018712,2]
[367773014,1750925451600,-460.0,0.00018712,2]
[367773015,1750925451610,-460.0,0.00018712,2]
[367773017,1750925451619,-153.271624,0.00018712,2]
[367773019,1750925451628,-460.0,0.00018712,2]
[367773021,1750925451638,-262.515764,0.00018712,2]
[367773024,1750925451647,-460.0,0.00018712,2]
[367773026,1750925451657,-151.0,0.00018712,2]
[367773028,1750925451667,-600.746683,0.00018712,2]
[367773030,1750925451677,-445.01177411,0.00018712,2]
[367773032,1750925451686,-600.746683,0.00018712,2]
[367773034,1750925451695,-460.0,0.00018712,2]
[367773036,1750925451705,-460.0,0.00018712,2]
[367773038,1750925451715,-460.0,0.00018712,2]
[367773039,1750925451723,-460.0,0.00018712,2]
[367773041,1750925451733,-460.0,0.00018712,2]
[367773043,1750925451742,-467.03794227,0.00018712,2]
[367773045,1750925451752,-460.0,0.00018712,2]
[367773047,1750925451762,-460.0,0.00018712,2]
[367773049,1750925451771,-1567.18,0.00018712,2]
[367773051,1750925451781,-460.0,0.00018712,2]
[367773053,1750925451791,-460.0,0.00018712,2]
[367773055,1750925451801,-460.0,0.00018712,2]
[367773058,1750925451811,-460.0,0.00018712,2]
[367773060,1750925451820,-1663.9,0.00018712,2]
[367773062,1750925451829,-497.59,0.00018712,2]
[367773064,1750925451839,-460.0,0.00018712,2]
[367773066,1750925451850,-460.0,0.00018712,2]
[367773068,1750925451859,-460.0,0.00018712,2]
[367773070,1750925451869,-460.0,0.00018712,2]
[367773072,1750925451878,-254.61105596,0.00018712,2]
[367773074,1750925451888,-460.0,0.00018712,2]
[367773075,1750925451897,-535.75,0.00018712,2]
[367773077,1750925451907,-460.0,0.00018712,2]
[367773079,1750925451916,-460.0,0.00018712,2]
[367773081,1750925451925,-507.91,0.00018712,2]
[367773083,1750925451934,-659.25,0.00018712,2]
[367773086,1750925451944,-2281.82,0.00018712,2]
[367773087,1750925451953,-460.0,0.00018712,2]
[367773090,1750925451962,-217.033012,0.00018712,2]
[367773092,1750925451972,-460.0,0.00018712,2]
[367773094,1750925451981,-1500.0,0.00018712,7]
[367773096,1750925451991,-217.033012,0.00018712,2]
[367773098,1750925452000,-2424.32,0.00018712,2]
[367773100,1750925452010,-460.0,0.00018712,2]
[367773102,1750925452019,-1500.0,0.00018712,7]
[367773104,1750925452028,-1500.0,0.00018712,7]
[367773106,1750925452038,-1500.0,0.00018712,7]
[367773108,1750925452047,-640.819661,0.00018712,7]
[367773110,1750925452056,-460.0,0.00018712,2]
[367773112,1750925452065,-960.97,0.00018712,2]
[367773114,1750925452074,-460.0,0.00018712,2]
[367773116,1750925452083,-2935.28,0.00018712,2]
[367773118,1750925452092,-460.0,0.00018712,2]
[367773120,1750925452102,-320.348799,0.00018712,2]
[367773122,1750925452111,-460.0,0.00018712,2]
[367773124,1750925452120,-460.0,0.00018712,2]
[367773126,1750925452130,-320.348799,0.00018712,2]
[367773128,1750925452139,-597.41,0.00018712,2]
[367773130,1750925452148,-460.0,0.00018712,2]
[367773132,1750925452157,-151.0,0.00018712,2]
[367773134,1750925452166,-460.0,0.00018712,2]
[367773136,1750925452175,-1502.2,0.00018712,2]
[367773138,1750925452183,-460.0,0.00018712,2]
[367773140,1750925452192,-460.0,0.00018712,2]
[367773142,1750925452202,-338.46,0.00018712,2]
[367773144,1750925452211,-460.0,0.00018712,2]
[367773146,1750925452220,-460.0,0.00018712,2]
[367773148,1750925452229,-460.0,0.00018712,2]
[367773150,1750925452238,-953.08,0.00018712,2]
[367773152,1750925452247,-460.0,0.00018712,2]
[367773154,1750925452256,-460.0,0.00018712,2]
[367773156,1750925452266,-460.0,0.00018712,2]
[367773158,1750925452275,-478.43,0.00018712,2]
[367773160,1750925452284,-460.0,0.00018712,2]
[367773162,1750925452294,-460.0,0.00018712,2]
[367773164,1750925452303,-2507.37,0.00018712,2]
[367773166,1750925452312,-460.0,0.00018712,2]
[367773168,1750925452322,-827.13,0.00018712,2]
[367773170,1750925452331,-740.56,0.00018712,2]
[367773172,1750925452340,-460.0,0.00018712,2]
[367773174,1750925452350,-460.0,0.00018712,2]
[367773176,1750925452359,-460.0,0.00018712,2]
[367773178,1750925452368,-1311.52,0.00018712,2]
[367773180,1750925452378,-460.0,0.00018712,2]
[367773182,1750925452387,-460.0,0.00018712,2]
[367773184,1750925452396,-484.03,0.00018712,2]
[367773186,1750925452408,-781.34,0.00018712,2]
[367773188,1750925452417,-500.0,0.00018719,2]
[367773190,1750925452427,-151.0,0.00018719,2]
[367773191,1750925452435,-321.409189,0.00018719,2]
[367773193,1750925452446,-321.409189,0.00018719,2]
[367773195,1750925452455,-221.24204749,0.0001875,2]
[367773198,1750925452464,-500.0,0.00018755,2]
[367773200,1750925452474,-151.0,0.00018755,2]
[367773201,1750925452485,-195.79417,0.00018755,2]
[367773203,1750925452495,-195.79417,0.00018755,2]
[367773205,1750925452504,-460.0,0.00018761,2]
[367773207,1750925452514,-460.0,0.00018761,2]
[367773209,1750925452523,-460.0,0.00018761,2]
[367773211,1750925452532,-460.0,0.00018761,2]
[367773213,1750925452542,-151.0,0.00018761,2]
[367773215,1750925452552,-151.0,0.00018761,2]
[367773217,1750925452561,-260.44628904,0.00018761,2]
[367773219,1750925452571,-151.0,0.00018761,2]